bitfinex-derivatives/quotes_ETHF0:USTF0_20250314
["timestamp","ask_amount","ask_price","bid_price","bid_amount"]
[1741922077853,1.05872,1889.4,1889.3,19.13265618]
[1741922078247,5.5678,1889.7,1889.3,19.13265618]
[1741922078552,5.5678,1889.7,1889.6,3.97825618]
[1741922078553,6.62635,1889.7,1889.6,3.97825618]
[1741922078951,1.05855,1889.7,1889.6,14.57185618]
[1741922079452,1.05855,1889.7,1889.6,15.92485618]
[1741922083350,1.05855,1889.7,1889.6,13.73085657]
[1741922083541,2.48625,1889.7,1889.6,13.73085657]
[1741922084142,2.48625,1889.7,1889.6,11.9466]
[1741922084348,3.17935,1889.7,1889.6,11.9466]
[1741922084656,3.17935,1889.7,1889.4,1.3228]
[1741922084657,1.05867,1889.5,1889.4,1.3228]
[1741922084851,1.05867,1889.5,1889.4,5.30105618]
[1741922085053,3.41867,1889.5,1889.4,15.89465618]
[1741922086150,4.84637,1889.5,1889.4,17.23585618]
[1741922087760,4.84637,1889.5,1889.4,11.9348]
[1741922090862,4.84637,1889.5,1889.4,13.3046]
[1741922091049,4.84637,1889.5,1889.4,14.364]
[1741922094966,4.84637,1889.5,1889.4,11.9348]
[1741922095867,4.84637,1889.5,1889.4,10.5936]
[1741922096367,8.05417,1889.5,1889.4,10.5936]
[1741922097458,4.84637,1889.5,1889.4,10.5936]
[1741922097655,8.05417,1889.5,1889.4,10.5936]
[1741922098160,1.05878,1889.3,1889.2,1.3424]
[1741922098470,1.05878,1889.3,1889.2,3.12665657]
[1741922098664,1.05878,1889.3,1889.2,17.69851275]
[1741922099167,3.2078,1889.7,1889.2,15.91425618]
[1741922099358,2.41445,1889.7,1889.6,3.97825618]
[1741922099565,1.05867,1889.5,1889.4,3.97825618]
[1741922099766,1.05867,1889.5,1889.4,15.94455618]
[1741922099767,3.41767,1889.5,1889.4,15.94455618]
[1741922099963,3.41767,1889.5,1889.4,14.80995657]
[1741922100162,5.47717,1889.5,1889.4,14.80995657]
[1741922100363,1.06648343,1889.8,1889.4,17.00325618]
[1741922100664,1.06644343,1889.8,1889.7,3.97825618]
[1741922101059,1.06644343,1889.8,1889.7,14.57185618]
[1741922101564,1.06644343,1889.8,1889.7,17.70001275]
[1741922101966,1.06644343,1889.8,1889.7,15.91575618]
[1741922102362,0.00794343,1889.8,1889.7,15.91575618]
[1741922103461,1.06644343,1889.8,1889.7,15.91575618]
[1741922105869,0.00794343,1889.8,1889.7,15.91575618]
[1741922106669,1.06644343,1889.8,1889.7,15.91575618]
[1741922106968,1.06644343,1889.8,1889.7,12.9969]
[1741922107178,1.06644343,1889.8,1889.7,15.91575618]
[1741922107873,1.06644343,1889.8,1889.7,17.70001275]
[1741922108070,1.06644343,1889.8,1889.7,13.72175657]
[1741922108570,1.06644343,1889.8,1889.7,15.91575618]
[1741922109875,0.00794343,1889.8,1889.7,15.91575618]
[1741922110664,3.2078,1890.3,1889.7,25.62175618]
[1741922110876,2.359,1890.2,1890.1,3.97825618]
[1741922111071,2.359,1890.2,1890.1,1.0594]
[1741922111273,3.31218,1890.5,1890.1,1.0594]
[1741922111274,3.8746,1890.5,1890.1,14.57185618]
[1741922111578,3.41716,1890.4,1890.3,3.97825618]
[1741922111768,3.41716,1890.4,1890.3,5.42205618]
[1741922111968,4.76156,1890.4,1890.3,12.0374]
[1741922112871,4.76156,1890.4,1890.3,1.4438]
[1741922113071,3.7034,1890.4,1890.2,0.00794343]
[1741922113273,5.61042,1890.3,1890.2,0.00794343]
[1741922114668,1.0585,1889.8,1889.7,3.2078]
[1741922114869,1.0585,1889.8,1889.7,4.70311275]
[1741922115070,1.0585,1889.8,1889.7,16.35611275]
[1741922115266,1.05848,1889.9,1889.7,14.57185618]
[1741922115479,1.05848,1889.9,1889.8,13.51245618]
[1741922115776,2.359,1890.0,1889.8,3.97825618]
[1741922115974,3.41739,1890.0,1889.9,15.90475618]
[1741922116170,3.41739,1890.0,1889.9,5.31115618]
[1741922116376,3.41739,1890.0,1889.9,15.90475618]
[1741922122580,3.41739,1890.0,1889.9,17.68901275]
[1741922123987,1.05839,1890.0,1889.9,17.68901275]
[1741922124389,1.05839,1890.0,1889.9,20.89681275]
[1741922124892,3.41627,1890.3,1889.9,28.81855618]
[1741922125091,3.41622,1890.3,1890.2,3.97825618]
[1741922125279,1.0582,1890.4,1890.2,3.97825618]
[1741922125590,1.0582,1890.4,1890.3,15.90335618]
[1741922125789,1.0582,1890.4,1890.3,5.30975618]
[1741922125995,1.0582,1890.4,1890.3,15.90335618]
[1741922126292,3.2078,1890.4,1889.9,3.2078]
[1741922126491,1.05839,1890.0,1889.9,4.99205657]
[1741922126883,1.05839,1890.0,1889.9,19.56391275]
[1741922127391,1.05839,1890.0,1889.9,16.35611275]
[1741922127590,1.05839,1890.0,1889.9,12.0187]
[1741922127795,1.05839,1890.0,1889.9,1.4251]
[1741922128691,1.05839,1890.0,1889.9,12.0187]
[1741922129684,1.05839,1890.0,1889.9,15.99695618]
[1741922130085,1.399,1890.1,1889.9,19.20475618]
[1741922130086,2.358,1890.1,1889.9,19.20475618]
[1741922130390,5.5658,1890.4,1890.0,15.96775618]
[1741922130589,3.4162,1890.4,1890.3,3.97825618]
[1741922130787,3.4162,1890.4,1890.3,14.57185618]
[1741922131492,1.0582,1890.4,1890.3,14.57185618]
[1741922131787,1.0582,1890.4,1890.3,17.75201275]
[1741922132089,2.4593,1890.4,1890.3,17.75201275]
[1741922132391,2.4593,1890.4,1890.3,11.9895]
[1741922133585,2.4593,1890.4,1890.3,13.77375657]
[1741922135882,2.4593,1890.4,1890.3,11.9895]
[1741922136186,2.4593,1890.4,1890.3,10.5936]
[1741922138295,2.4593,1890.4,1890.3,12.37785657]
[1741922138486,2.4593,1890.4,1890.3,13.03615657]
[1741922138892,2.4593,1890.4,1890.3,14.42645657]
[1741922139093,1.0582,1890.4,1890.3,14.42645657]
[1741922139495,1.0582,1890.4,1890.3,16.62045618]
[1741922140192,1.05816,1890.4,1890.3,16.62045618]
[1741922140399,0.00794343,1890.5,1890.3,16.62045618]
[1741922140596,1.06605343,1890.5,1890.4,15.96215618]
[1741922141082,2.39835343,1890.5,1890.4,15.96215618]
[1741922144992,1.06605343,1890.5,1890.4,15.96215618]
[1741922147194,0.00794343,1890.5,1890.4,15.96215618]
[1741922147401,1.06605343,1890.5,1890.4,15.96215618]
[1741922153292,1.3406,1890.9,1890.4,15.96215618]
[1741922153598,3.41488,1890.9,1890.8,2.91885618]
[1741922154105,3.41488,1890.9,1890.8,13.3153]
[1741922154301,4.11818,1890.9,1890.8,13.3153]
[1741922154491,7.32598,1890.9,1890.8,11.9496]
[1741922154692,8.01008,1890.9,1890.8,11.9496]
[1741922158110,8.01008,1890.9,1890.8,1.356]
[1741922158296,1.05794,1890.8,1890.7,0.00794343]
[1741922158500,1.05805,1890.6,1890.5,1.3815]
[1741922158711,3.41505,1890.6,1890.5,11.9751]
[1741922159205,4.83575,1890.6,1890.5,11.9751]
[1741922161009,4.83575,1890.6,1890.5,10.5936]
[1741922161010,5.53235,1890.6,1890.5,10.5936]
[1741922161212,5.53235,1890.6,1890.5,11.983]
[1741922161706,1.05811,1890.5,1890.4,0.00794343]
[1741922161906,6.30421,1890.5,1890.4,1.39734343]
[1741922162509,6.30421,1890.5,1890.4,0.00794343]
[1741922162809,7.7461,1890.5,1889.9,0.7199]
[1741922163012,1.05839,1890.0,1889.9,10.5936]
[1741922163310,1.05844,1889.9,1889.8,3.2078]
[1741922163508,1.05844,1889.9,1889.8,13.8014]
[1741922163712,1.05844,1889.9,1889.8,10.5936]
[1741922164210,1.0585,1889.8,1889.7,2.03424343]
[1741922164411,1.0585,1889.8,1889.7,6.73735618]
[1741922164610,4.2663,1889.8,1889.7,13.7387]
[1741922164808,1.0585,1889.8,1889.7,11.95444343]
[1741922165719,4.2663,1889.8,1889.7,11.95444343]
[1741922166017,4.9269,1889.8,1889.7,0.00794343]
[1741922166217,4.9269,1889.8,1889.4,0.6771]
[1741922166218,6.51472,1889.8,1889.5,1.3593]
[1741922166411,1.05861,1889.6,1889.5,13.0123]
[1741922166608,1.05861,1889.6,1889.5,4.20295657]
[1741922166809,1.05861,1889.6,1889.5,14.79655657]
[1741922167010,2.46921,1889.6,1889.5,14.79655657]
[1741922169115,1.05861,1889.6,1889.5,14.79655657]
[1741922169819,1.05861,1889.6,1889.5,17.71541275]
[1741922170628,3.7419,1889.7,1889.5,17.71541275]
[1741922170924,3.41557,1889.7,1889.6,13.0778]
[1741922171128,3.41557,1889.7,1889.6,13.7935]
[1741922171325,3.41557,1889.7,1889.6,12.7341]
[1741922171631,4.80047,1889.7,1889.6,12.7341]
[1741922171928,4.80047,1889.7,1889.6,13.7935]
[1741922172317,3.41557,1889.7,1889.6,16.71235618]
[1741922174029,1.05857,1889.7,1889.6,16.71235618]
[1741922174431,1.05851,1889.8,1889.6,16.71235618]
[1741922174635,1.05851,1889.8,1889.7,11.9478]
[1741922174829,1.05851,1889.8,1889.7,15.92605618]
[1741922175434,1.05848,1889.9,1889.7,15.92605618]
[1741922175631,1.05848,1889.9,1889.8,16.56435618]
[1741922175828,1.05848,1889.9,1889.8,5.97075618]
[1741922176029,0.00794343,1890.0,1889.8,16.56435618]
[1741922176339,1.05831,1890.2,1889.9,30.55454618]
[1741922176630,2.357,1890.4,1890.3,3.97825618]
[1741922176933,3.41516,1890.4,1890.3,14.57185618]
[1741922177529,3.41516,1890.4,1890.3,18.49705618]
[1741922177828,2.357,1890.4,1890.3,28.20305618]
[1741922178128,0.00794343,1890.5,1890.3,18.49705618]
[1741922178129,1.06609343,1890.5,1890.3,18.49705618]
[1741922178331,1.06609343,1890.5,1890.4,24.27785618]
[1741922178728,0.00794343,1890.5,1890.4,24.27785618]
[1741922179531,0.00794343,1890.5,1890.4,25.64265618]
[1741922179730,1.06605343,1890.5,1890.4,25.64265618]
[1741922180336,0.00794343,1890.5,1890.4,26.70081618]
[1741922180531,0.00794343,1890.5,1890.4,25.64265618]
[1741922181333,0.00794343,1890.5,1890.4,26.70081618]
[1741922181534,0.00794343,1890.5,1890.4,27.42691275]
[1741922181737,1.06605343,1890.5,1890.4,27.42691275]
[1741922182136,0.00794343,1890.5,1890.4,27.42691275]
[1741922182839,0.00794343,1890.5,1890.4,28.48507275]
[1741922183142,0.00794343,1890.5,1890.4,26.70081618]
[1741922185739,1.05794,1890.8,1890.6,1.05804]
[1741922185938,1.05794,1890.8,1890.7,3.1415]
[1741922186135,1.05794,1890.8,1890.7,16.65395618]
[1741922186438,1.05794,1890.8,1890.7,15.59455618]
[1741922186633,1.05794,1890.8,1890.7,16.65395618]
[1741922187743,1.06586343,1890.9,1890.7,16.65395618]
[1741922188039,1.06586343,1890.9,1890.8,15.89725618]
[1741922188438,1.06586343,1890.9,1890.8,14.83785618]
[1741922189043,0.00794343,1890.9,1890.8,14.83785618]
[1741922191143,1.06582343,1890.9,1890.8,15.89725618]
[1741922191442,0.00794343,1890.9,1890.8,15.89725618]
[1741922193547,0.00794343,1890.9,1890.8,16.95519618]
[1741922194249,2.43835,1891.4,1891.0,1.05779]
[1741922194449,2.4383,1891.4,1891.3,2.91885618]
[1741922194942,3.7621,1891.4,1891.3,14.92285618]
[1741922196349,3.7621,1891.4,1891.3,12.004]
[1741922200147,2.7045,1891.4,1891.3,12.004]
[1741922200353,0.00794343,1891.5,1891.3,19.19005618]
[1741922200545,0.00794343,1891.5,1891.4,16.66355618]
[1741922200849,0.00794343,1891.5,1891.4,17.72115618]
[1741922201147,0.00794343,1891.5,1891.4,16.66355618]
[1741922201349,1.06549343,1891.5,1891.4,16.66355618]
[1741922202251,2.38669343,1891.5,1891.4,16.66355618]
[1741922202441,2.38669343,1891.5,1891.4,15.96875618]
[1741922206158,2.38669343,1891.5,1891.4,10.5936]
[1741922207053,1.32914343,1891.5,1891.4,10.5936]
[1741922207258,2.38669343,1891.5,1891.4,10.5936]
[1741922208157,1.05766,1891.3,1891.2,9.706]
[1741922208362,1.05766,1891.3,1891.2,15.71951275]
[1741922208559,1.05766,1891.3,1891.2,26.31311275]
[1741922208856,2.39146,1891.3,1891.2,26.31311275]
[1741922210851,2.39146,1891.3,1891.2,16.60711275]
[1741922213362,2.39146,1891.3,1891.2,17.66651275]
[1741922214459,1.05791,1890.9,1890.7,9.706]
[1741922214759,1.05791,1890.9,1890.8,11.3084]
[1741922215063,1.05791,1890.9,1890.8,15.28665618]
[1741922215361,1.05791,1890.9,1890.8,17.07091275]
[1741922215861,1.05791,1890.9,1890.8,18.41361275]
[1741922217355,2.43261,1890.9,1890.8,18.41361275]
[1741922217660,1.05791,1890.9,1890.8,16.62935618]
[1741922219053,2.40431,1890.9,1890.8,16.62935618]
[1741922220461,1.05791,1890.9,1890.8,16.62935618]
[1741922221863,3.9202,1891.2,1890.8,16.62935618]
[1741922222161,4.12411,1891.2,1891.1,3.97825618]
[1741922222559,4.12411,1891.2,1891.1,14.57185618]
[1741922222761,5.57171,1891.2,1891.1,14.57185618]
[1741922222954,5.57171,1891.2,1891.1,15.25665618]
[1741922223859,3.21771,1891.2,1891.1,15.25665618]
[1741922224756,1.05771,1891.2,1891.1,15.25665618]
[1741922226061,1.05771,1891.2,1891.1,18.46445618]
[1741922226561,2.0128,1891.4,1891.1,18.46445618]
[1741922226863,1.05763,1891.4,1891.3,3.97825618]
[1741922227256,1.05763,1891.4,1891.3,14.83025618]
[1741922227666,1.05763,1891.4,1891.3,11.9114]
[1741922227862,1.75803,1891.4,1891.3,11.9114]
[1741922230956,1.75803,1891.4,1891.3,14.83025618]
[1741922231156,1.75803,1891.4,1891.3,15.88965618]
[1741922231867,1.05763,1891.4,1891.3,15.88965618]
[1741922232467,1.0576,1891.4,1891.3,15.88965618]
[1741922233470,1.32834343,1891.5,1891.3,15.88965618]
[1741922233671,2.38592343,1891.5,1891.4,15.93055618]
[1741922233870,2.38592343,1891.5,1891.4,5.33695618]
[1741922234064,2.38592343,1891.5,1891.4,11.9523]
[1741922242573,1.06552343,1891.5,1891.4,15.93055618]
[1741922242770,0.00794343,1891.5,1891.4,15.93055618]
[1741922242968,1.06549343,1891.5,1891.4,15.93055618]
[1741922243168,1.06549343,1891.5,1891.4,16.61915618]
[1741922245575,1.06549343,1891.5,1891.4,11.9523]
[1741922245771,1.76729343,1891.5,1891.4,11.9523]
[1741922246078,1.76729343,1891.5,1891.4,1.3587]
[1741922246776,3.16619343,1891.5,1891.4,1.3587]
[1741922247374,1.05771,1891.2,1891.1,9.706]
[1741922247568,1.05771,1891.2,1891.1,20.2996]
[1741922247974,1.77231,1891.2,1891.1,24.27785618]
[1741922248872,1.77231,1891.2,1891.1,14.57185618]
[1741922249576,1.05771,1891.2,1891.1,14.57185618]
[1741922252173,1.05771,1891.2,1891.1,15.89275618]
[1741922254479,1.05771,1891.2,1891.1,17.67701275]
[1741922255586,1.05771,1891.2,1891.1,13.69875657]
[1741922255781,1.05771,1891.2,1891.1,11.9145]
[1741922256694,1.3861,1891.3,1890.8,3.2078]
[1741922256988,1.05794,1890.8,1890.7,1.4429]
[1741922257176,3.41094,1890.8,1890.7,13.0959]
[1741922257378,5.49454,1890.8,1890.7,12.0365]
[1741922257686,5.49454,1890.8,1890.7,1.42701314]
[1741922257886,1.05799,1890.7,1890.6,0.00794343]
[1741922258179,1.05844,1889.9,1889.8,5.5608]
[1741922258383,1.05844,1889.9,1889.8,3.9073]
[1741922258683,1.05844,1889.9,1889.8,20.26341275]
[1741922259477,1.05844,1889.9,1889.8,17.05561275]
[1741922260990,1.05844,1889.9,1889.8,18.41751275]
[1741922261481,2.45704,1889.9,1889.8,14.79915657]
[1741922261688,2.45704,1889.9,1889.8,11.9555]
[1741922263588,2.45704,1889.9,1889.8,1.3619]
[1741922263790,1.0585,1889.8,1889.7,0.00794343]
[1741922263987,2.4083,1889.8,1889.7,11.90854343]
[1741922265889,2.4083,1889.8,1889.7,1.31494343]
[1741922266390,2.4083,1889.8,1889.7,0.00794343]
[1741922267685,5.6161,1889.8,1889.7,0.00794343]
[1741922270188,8.1161,1889.8,1889.7,0.00794343]
[1741922270397,8.20511047,1889.8,1889.7,0.00794343]
[1741922270587,8.1161,1889.8,1889.7,0.00794343]
[1741922270789,8.20510838,1889.8,1889.7,0.00794343]
[1741922272395,8.20510287,1889.8,1889.7,0.00794343]
[1741922273098,1.05878,1889.3,1889.2,1.352]
[1741922273395,3.41278,1889.3,1889.2,1.352]
[1741922273694,6.62058,1889.3,1889.2,1.352]
[1741922274192,6.70957287,1889.3,1889.2,1.352]
[1741922274393,6.62058,1889.3,1889.2,1.352]
[1741922274599,6.70956325,1889.3,1889.2,1.352]
[1741922274794,6.79854666,1889.3,1889.2,1.352]
[1741922274998,6.70956325,1889.3,1889.2,1.352]
[1741922275998,1.05883,1889.2,1889.1,0.00794343]
[1741922276191,3.20483,1889.2,1889.1,2.51194343]
[1741922276698,3.20483,1889.2,1889.1,1.45254343]
[1741922278799,1.05883,1889.2,1889.1,2.51194343]
[1741922278999,1.05883,1889.2,1889.1,3.23134343]
[1741922280203,1.05883,1889.2,1889.1,13.82494343]
[1741922280795,1.05883,1889.2,1889.1,13.10554343]
[1741922280796,2.41363,1889.2,1889.1,13.10554343]
[1741922281101,2.41363,1889.2,1889.1,0.00794343]
[1741922281102,4.91363,1889.2,1889.1,0.00794343]
[1741922281288,9.8997649,1889.2,1888.2,3.2078]
[1741922281494,3.2078,1888.6,1888.3,11.653]
[1741922281690,1.05928,1888.4,1888.3,1.0594]
[1741922281902,1.05934,1888.3,1888.2,1.3977]
[1741922282200,2.49014,1888.3,1888.2,11.9913]
[1741922282505,2.49014,1888.3,1888.2,13.0507]
[1741922283197,1.05934,1888.3,1888.2,13.0507]
[1741922283598,3.21574343,1888.4,1888.2,15.96955618]
[1741922283793,4.27504343,1888.4,1888.3,14.57185618]
[1741922285001,1.06724343,1888.4,1888.3,14.57185618]
[1741922287208,4.27504343,1888.4,1888.3,14.57185618]
[1741922288211,1.06724343,1888.4,1888.3,14.57185618]
[1741922290103,1.05934,1888.3,1888.2,1.3977]
[1741922290304,1.05934,1888.3,1888.2,13.77555657]
[1741922290502,1.05934,1888.3,1888.2,14.83495657]
[1741922292414,1.05934,1888.3,1888.2,15.96955618]
[1741922295011,1.05934,1888.3,1888.2,13.0507]
[1741922295216,1.05934,1888.3,1888.2,1.3977]
[1741922295416,2.0207,1888.3,1888.1,0.00794343]
[1741922295617,3.4144,1888.2,1888.1,0.00794343]
[1741922295821,4.7194,1888.2,1888.1,0.00794343]
[1741922296913,10.4272,1888.2,1888.1,0.00794343]
[1741922297107,10.51611008,1888.2,1888.1,0.00794343]
[1741922297514,8.01611008,1888.2,1888.1,0.00794343]
[1741922297917,7.9272,1888.2,1888.1,0.00794343]
[1741922298505,6.6222,1888.2,1888.1,0.00794343]
[1741922298706,6.6222,1888.2,1888.1,11.66094343]
[1741922298918,3.4144,1888.2,1888.1,11.66094343]
[1741922300117,3.4144,1888.2,1888.1,14.57979961]
[1741922300317,3.4144,1888.2,1888.1,16.02009961]
[1741922300812,5.28534343,1888.4,1888.1,16.02009961]
[1741922300813,0.00794343,1888.4,1888.1,16.02009961]
[1741922301016,0.00794343,1888.4,1888.3,3.97825618]
[1741922301220,1.06722343,1888.4,1888.3,3.97825618]
[1741922301426,1.06722343,1888.4,1888.3,16.69765618]
[1741922302725,1.06722343,1888.4,1888.3,13.0933]
[1741922302914,2.37262343,1888.4,1888.3,1.4403]
[1741922303623,1.06722343,1888.4,1888.3,16.01215618]
[1741922306825,1.06722343,1888.4,1888.3,17.79641275]
[1741922307726,1.06722343,1888.4,1888.3,16.01215618]
[1741922309229,0.00794343,1888.4,1888.3,16.01215618]
[1741922309422,5.5628,1889.0,1888.3,28.68300079]
[1741922309630,1.059,1888.9,1888.8,3.97825618]
[1741922309830,2.3854,1888.9,1888.8,3.97825618]
[1741922311328,1.059,1888.9,1888.8,3.97825618]
[1741922312928,1.059,1888.9,1888.8,5.97885618]
[1741922313726,2.4442,1888.9,1888.8,5.97885618]
[1741922314235,2.4442,1888.9,1888.8,7.76311275]
[1741922315133,2.4442,1888.9,1888.8,18.35671275]
[1741922320234,2.4442,1888.9,1888.8,11.9329]
[1741922320429,3.1483,1888.9,1888.8,11.9329]
[1741922320831,2.4442,1888.9,1888.8,15.91115618]
[1741922321033,2.4442,1888.9,1888.8,16.57735618]
[1741922322238,1.059,1888.9,1888.8,16.57735618]
[1741922322631,2.4262,1888.9,1888.8,16.57735618]
[1741922324629,2.4262,1888.9,1888.8,1.3393]
[1741922325038,2.4262,1888.9,1888.8,11.9329]
[1741922325846,1.3672,1888.9,1888.5,3.2078]
[1741922326139,1.05923,1888.5,1888.4,1.3216]
[1741922326340,1.05923,1888.5,1888.4,6.02471275]
[1741922326532,1.05923,1888.5,1888.4,17.67771275]
[1741922327345,2.36383,1888.5,1888.4,18.99881275]
[1741922327645,3.06973,1888.5,1888.4,17.67721275]
[1741922327939,3.06973,1888.5,1888.4,13.69895657]
[1741922328140,3.06973,1888.5,1888.4,11.9147]
[1741922328342,2.36383,1888.5,1888.4,15.89295618]
[1741922328655,1.05923,1888.5,1888.4,15.89295618]
[1741922329344,1.05923,1888.5,1888.4,16.58215618]
[1741922330047,1.05923,1888.5,1888.4,15.52275618]
[1741922330346,1.05923,1888.5,1888.4,16.58215618]
[1741922331745,1.05923,1888.5,1888.4,5.98855618]
[1741922331937,1.05923,1888.5,1888.4,16.58215618]
[1741922333039,1.05923,1888.5,1888.4,18.36641275]
[1741922334436,1.05923,1888.5,1888.4,17.67721275]
[1741922334638,1.74793,1888.5,1888.4,17.67721275]
[1741922334843,3.16923,1888.5,1888.4,17.67721275]
[1741922336340,1.05923,1888.5,1888.4,17.67721275]
[1741922336937,2.50343,1888.5,1888.4,17.67721275]
[1741922337141,2.50343,1888.5,1888.4,11.9147]
[1741922340545,2.50343,1888.5,1888.4,13.69895657]
[1741922341652,1.05923,1888.5,1888.4,15.89295618]
[1741922341839,3.0195,1888.7,1888.4,15.89295618]
[1741922342045,1.05917,1888.6,1888.5,14.87715618]
[1741922342245,1.05917,1888.6,1888.5,4.28355618]
[1741922342552,2.38557,1888.6,1888.5,15.93655618]
[1741922342949,1.05917,1888.6,1888.5,15.93655618]
[1741922343252,1.05917,1888.6,1888.5,13.0177]
[1741922343455,2.38557,1888.6,1888.5,13.0177]
[1741922343645,1.05917,1888.6,1888.5,15.93655618]
[1741922347756,1.05917,1888.6,1888.5,17.72081275]
[1741922348649,1.05917,1888.6,1888.5,15.93655618]
[1741922350646,5.5608,1888.8,1888.5,15.93655618]
[1741922350849,6.61986,1888.8,1888.7,3.97825618]
[1741922351254,6.61986,1888.8,1888.7,14.57185618]
[1741922357156,6.61986,1888.8,1888.7,12.37785657]
[1741922357355,6.61986,1888.8,1888.7,10.5936]
[1741922357661,1.05928,1888.4,1888.3,9.706]
[1741922357958,1.05928,1888.4,1888.3,26.06211275]
[1741922358455,2.40278,1888.4,1888.3,26.06211275]
[1741922358859,2.40278,1888.4,1888.3,22.08385657]
[1741922359449,3.09408,1888.4,1888.3,22.08385657]
[1741922360059,3.09408,1888.4,1888.3,20.2996]
[1741922360359,3.09408,1888.4,1888.3,10.5936]
[1741922362956,2.0348,1888.4,1888.1,3.21574343]
[1741922363151,1.0594,1888.2,1888.1,8.97825618]
[1741922363357,3.4124,1888.2,1888.1,8.97825618]
[1741922363557,3.4124,1888.2,1888.1,19.57185618]
[1741922364064,3.4124,1888.2,1888.1,17.78759961]
[1741922364563,3.4124,1888.2,1888.1,19.57185618]
[1741922365862,3.4124,1888.2,1888.1,17.78759961]
[1741922370272,3.4124,1888.2,1888.1,19.57185618]
[1741922370967,3.4124,1888.2,1888.1,16.36405618]
[1741922371271,3.4124,1888.2,1888.1,17.06965618]
[1741922374073,3.4124,1888.2,1888.1,12.3858]
[1741922374268,6.6202,1888.2,1888.1,0.00794343]
[1741922374472,3.4124,1888.2,1888.1,10.60154343]
[1741922374667,6.6202,1888.2,1888.1,0.00794343]
[1741922374973,9.20910543,1888.2,1888.1,0.00794343]
[1741922375175,6.70910543,1888.2,1888.1,0.00794343]
[1741922375376,8.51030964,1888.2,1888.1,0.00794343]
[1741922375677,1.05962,1887.8,1887.7,1.3251]
[1741922375971,3.41262,1887.8,1887.7,11.9187]
[1741922376273,8.0608,1887.8,1887.0,3.2078]
[1741922376476,1.06001,1887.1,1887.0,4.99205657]
[1741922376677,3.41201,1887.1,1887.0,9.15169486]
[1741922376873,3.41201,1887.1,1887.0,13.12995104]
[1741922377677,4.72341,1887.1,1887.0,14.48285104]
[1741922377875,4.72341,1887.1,1887.0,8.72033829]
[1741922379369,7.93121,1887.1,1887.0,8.72033829]
[1741922381080,4.72341,1887.1,1887.0,8.72033829]
[1741922383082,1.06001,1887.1,1887.0,12.69859447]
[1741922383279,3.41301,1887.1,1887.0,12.69859447]
[1741922385580,3.41301,1887.1,1887.0,11.56399486]
[1741922385778,3.41301,1887.1,1887.0,12.69859447]
[1741922386883,1.06007,1887.0,1886.9,0.00794343]
[1741922387178,1.06007,1887.0,1886.7,1.4116]
[1741922387179,1.06018,1886.8,1886.7,1.4116]
[1741922387385,1.06018,1886.8,1886.7,2.0721]
[1741922387586,1.06018,1886.8,1886.7,12.74139447]
[1741922388285,3.41318,1886.8,1886.7,12.08089447]
[1741922388481,3.41318,1886.8,1886.7,12.74139447]
[1741922388875,3.41318,1886.8,1886.7,6.05035618]
[1741922390085,3.41318,1886.8,1886.7,4.99095618]
[1741922390282,3.41318,1886.8,1886.7,6.05035618]
[1741922391185,3.41318,1886.8,1886.7,5.38985618]
[1741922391386,4.72828,1886.8,1886.7,5.38985618]
[1741922391686,4.72828,1886.8,1886.7,1.4116]
[1741922391881,3.41318,1886.8,1886.7,5.38985618]
[1741922392992,3.41318,1886.8,1886.7,7.17411275]
[1741922393182,4.72828,1886.8,1886.7,7.17411275]
[1741922393993,4.72828,1886.8,1886.7,8.10263829]
[1741922398092,1.06024,1886.7,1886.6,0.00794343]
[1741922398289,6.32344,1886.7,1886.6,6.69898172]
[1741922400583,1.06024,1886.7,1886.6,10.6772379]
[1741922400783,1.06024,1886.7,1886.6,11.3480379]
[1741922400990,1.06024,1886.7,1886.6,12.7536379]
[1741922401682,1.06024,1886.7,1886.6,9.83478172]
[1741922401879,1.06024,1886.7,1886.6,12.7536379]
[1741922405899,1.06024,1886.7,1886.6,14.53789447]
[1741922408498,1.06024,1886.7,1886.6,12.7536379]
[1741922409993,1.4234,1887.0,1886.6,12.7536379]
[1741922410197,1.06007,1887.0,1886.9,3.97825618]
[1741922410693,1.06007,1887.0,1886.9,13.37549447]
[1741922412102,1.06005,1887.1,1886.9,13.37549447]
[1741922412296,1.06005,1887.1,1887.0,8.07543829]
[1741922412496,1.06005,1887.1,1887.0,12.05369447]
[1741922413707,0.00794343,1887.2,1887.0,12.05369447]
[1741922413897,1.06790343,1887.2,1887.1,12.04969447]
[1741922414100,1.06790343,1887.2,1887.1,5.35865618]
[1741922414294,2.42920343,1887.2,1887.1,12.04969447]
[1741922415005,2.42920343,1887.2,1887.1,12.77455104]
[1741922415208,2.42920343,1887.2,1886.8,12.9138]
[1741922415209,1.06013,1886.9,1886.8,12.9138]
[1741922415412,1.06013,1886.9,1886.8,14.69805657]
[1741922415610,1.06013,1886.9,1886.8,25.36735104]
[1741922416002,2.354,1887.0,1886.8,13.87709447]
[1741922416205,2.354,1887.0,1886.9,10.66929447]
[1741922416708,2.354,1887.0,1886.9,11.99529447]
[1741922417711,1.06793343,1887.2,1886.9,11.99529447]
[1741922418013,1.06793343,1887.2,1886.7,1.384]
[1741922418014,1.06793343,1887.2,1887.1,3.97825618]
[1741922418510,2.43783343,1887.2,1887.1,12.72015104]
[1741922420306,2.43783343,1887.2,1887.1,11.58959447]
[1741922420513,1.06793343,1887.2,1887.1,12.64899447]
[1741922421515,2.39713343,1887.2,1887.1,12.64899447]
[1741922423313,1.06793343,1887.2,1887.1,12.64899447]
[1741922429214,1.06793343,1887.2,1887.1,5.95795618]
[1741922429416,1.06793343,1887.2,1887.1,12.64899447]
[1741922434217,0.00794343,1887.2,1887.1,12.64899447]
[1741922434418,1.06790343,1887.2,1887.1,14.43325104]
[1741922434724,0.00794343,1887.2,1887.1,14.43325104]
[1741922435325,0.00794343,1887.2,1887.1,13.70900447]
[1741922435521,0.00794343,1887.2,1887.1,16.67557479]
[1741922435716,1.05989,1887.4,1887.1,16.67557479]
[1741922435916,1.05989,1887.4,1887.3,3.2078]
[1741922436222,1.3932,1887.6,1887.3,7.18605618]
[1741922436416,1.05973,1887.6,1887.5,3.97825618]
[1741922436924,1.05973,1887.6,1887.5,12.67119447]
[1741922437114,1.05973,1887.6,1887.5,15.87899447]